[Event "Titled Tuesday Blitz February 21 Early 2023"]
[White "Chigaev, Maksim"]
[Black "Hajiyev, Kanan"]
[WhiteFideId "4108116"]
[BlackFideId "13404148"]
[WhiteElo "2628"]
[BlackElo "2197"]
[Result "1-0"]
[Round "01"]
[TimeControl "180+2"]
[Date "2023.02.21"]
[WhiteClock "0:00:25"]
[BlackClock "0:00:06"]

1. e4 {[%clk 0:02:29]}  c6 {[%clk 0:02:56]} 2. Nf3 {[%clk 0:02:29]}  d5 {[%clk 0:02:57]} 3. d3 {[%clk 0:02:30]}  Bg4 {[%clk 0:02:55]} 4. h3 {[%clk 0:02:29]}  Bh5 {[%clk 0:02:55]} 5. g4 {[%clk 0:02:28]}  Bg6 {[%clk 0:02:55]} 6. h4 {[%clk 0:02:29]}  h5 {[%clk 0:02:55]} 7. Ne5 {[%clk 0:02:25]}  Bh7 {[%clk 0:02:55]} 8. g5 {[%clk 0:02:22]}  dxe4 {[%clk 0:02:52]} 9. Nc3 {[%clk 0:01:58]}  Bf5 {[%clk 0:02:21]} 10. dxe4 {[%clk 0:01:51]}  Qxd1+ {[%clk 0:02:20]} 11. Kxd1 {[%clk 0:01:52]}  Be6 {[%clk 0:01:52]} 12. g6 {[%clk 0:01:33]}  Nh6 {[%clk 0:01:07]} 13. f3 {[%clk 0:01:22]}  Nd7 {[%clk 0:01:01]} 14. gxf7+ {[%clk 0:01:22]}  Bxf7 {[%clk 0:00:49]} 15. Nxf7 {[%clk 0:01:22]}  Nxf7 {[%clk 0:00:45]} 16. Bh3 {[%clk 0:01:21]}  O-O-O {[%clk 0:00:43]} 17. Ke2 {[%clk 0:01:22]}  Kc7 {[%clk 0:00:42]} 18. Be6 {[%clk 0:01:17]}  Nd6 {[%clk 0:00:25]} 19. Be3 {[%clk 0:01:09]}  g6 {[%clk 0:00:21]} 20. Rhg1 {[%clk 0:01:09]}  Bh6 {[%clk 0:00:12]} 21. f4 {[%clk 0:00:47]}  Nf8 {[%clk 0:00:11]} 22. Bb3 {[%clk 0:00:45]}  b6 {[%clk 0:00:12]} 23. a4 {[%clk 0:00:44]}  a5 {[%clk 0:00:10]} 24. Rad1 {[%clk 0:00:45]}  Nb7 {[%clk 0:00:10]} 25. e5 {[%clk 0:00:38]}  Rxd1 {[%clk 0:00:09]} 26. Rxd1 {[%clk 0:00:39]}  e6 {[%clk 0:00:06]} 27. Ne4 {[%clk 0:00:39]}  Rh7 {[%clk 0:00:05]} 28. Nf6 {[%clk 0:00:38]}  Re7 {[%clk 0:00:05]} 29. Ng8 {[%clk 0:00:31]}  Rh7 {[%clk 0:00:06]} 30. Nxh6 {[%clk 0:00:31]}  Rxh6 {[%clk 0:00:07]} 31. f5 {[%clk 0:00:32]}  Rh7 {[%clk 0:00:07]} 32. f6 {[%clk 0:00:32]}  Rd7 {[%clk 0:00:06]} 33. Rg1 {[%clk 0:00:26]}  c5 {[%clk 0:00:05]} 34. Bh6 {[%clk 0:00:26]}  Nd8 {[%clk 0:00:06]} 35. Bxf8 {[%clk 0:00:25]} 1-0


[Site "https://www.chess.com"]

[Event "Titled Tuesday Blitz February 21 Early 2023"]
[White "Cunha, Lucas Aguiar"]
[Black "Ter-Sahakyan, Samvel"]
[WhiteFideId "2125404"]
[BlackFideId "13302531"]
[WhiteElo "2309"]
[BlackElo "2617"]
[Result "0-1"]
[Round "01"]
[TimeControl "180+2"]
[Date "2023.02.21"]
[WhiteClock "0:00:17"]
[BlackClock "0:00:06"]

1. e4 {[%clk 0:02:59]}  c5 {[%clk 0:02:59]} 2. Nf3 {[%clk 0:02:58]}  Nc6 {[%clk 0:03:00]} 3. Nc3 {[%clk 0:02:58]}  Nf6 {[%clk 0:02:58]} 4. e5 {[%clk 0:02:57]}  Ng4 {[%clk 0:02:57]} 5. Qe2 {[%clk 0:02:57]}  Qc7 {[%clk 0:02:45]} 6. Nd5 {[%clk 0:02:56]}  Qb8 {[%clk 0:02:45]} 7. d4 {[%clk 0:02:57]}  cxd4 {[%clk 0:02:34]} 8. Bf4 {[%clk 0:02:57]}  e6 {[%clk 0:02:32]} 9. h3 {[%clk 0:02:57]}  Nh6 {[%clk 0:02:02]} 10. Bxh6 {[%clk 0:02:53]}  exd5 {[%clk 0:02:03]} 11. Bd2 {[%clk 0:02:53]}  Bc5 {[%clk 0:02:00]} 12. O-O-O {[%clk 0:02:51]}  O-O {[%clk 0:01:55]} 13. Qb5 {[%clk 0:02:50]}  d6 {[%clk 0:01:51]} 14. exd6 {[%clk 0:02:49]}  Qxd6 {[%clk 0:01:52]} 15. Bd3 {[%clk 0:02:45]}  a6 {[%clk 0:01:48]} 16. Qb3 {[%clk 0:02:45]}  h6 {[%clk 0:01:46]} 17. Rhe1 {[%clk 0:02:38]}  a5 {[%clk 0:01:39]} 18. Qa4 {[%clk 0:02:28]}  Bd7 {[%clk 0:01:38]} 19. Bb5 {[%clk 0:02:28]}  Rac8 {[%clk 0:01:37]} 20. Kb1 {[%clk 0:02:26]}  Bf5 {[%clk 0:01:34]} 21. Nh4 {[%clk 0:02:10]}  Bh7 {[%clk 0:01:32]} 22. f4 {[%clk 0:02:09]}  Qf6 {[%clk 0:01:14]} 23. Nf3 {[%clk 0:02:04]}  Nb4 {[%clk 0:01:14]} 24. Bxb4 {[%clk 0:01:53]}  Bxb4 {[%clk 0:01:15]} 25. Re2 {[%clk 0:01:53]}  Qxf4 {[%clk 0:01:07]} 26. Rxd4 {[%clk 0:01:50]}  Qf6 {[%clk 0:01:03]} 27. a3 {[%clk 0:01:45]}  Bc5 {[%clk 0:00:59]} 28. Rxd5 {[%clk 0:01:44]}  b6 {[%clk 0:01:00]} 29. Bd3 {[%clk 0:01:40]}  Bxd3 {[%clk 0:01:00]} 30. Rxd3 {[%clk 0:01:41]}  Rcd8 {[%clk 0:00:55]} 31. Red2 {[%clk 0:01:39]}  Rxd3 {[%clk 0:00:54]} 32. Rxd3 {[%clk 0:01:40]}  Qe6 {[%clk 0:00:55]} 33. Rd2 {[%clk 0:01:35]}  Rc8 {[%clk 0:00:53]} 34. Qb5 {[%clk 0:01:33]}  Be7 {[%clk 0:00:43]} 35. Re2 {[%clk 0:01:26]}  Qd6 {[%clk 0:00:41]} 36. Rd2 {[%clk 0:01:23]}  Qf6 {[%clk 0:00:36]} 37. Rd7 {[%clk 0:01:17]}  Bc5 {[%clk 0:00:36]} 38. Qb3 {[%clk 0:01:12]}  Re8 {[%clk 0:00:35]} 39. Qd3 {[%clk 0:01:04]}  g6 {[%clk 0:00:35]} 40. h4 {[%clk 0:01:01]}  Bf8 {[%clk 0:00:34]} 41. h5 {[%clk 0:00:56]}  g5 {[%clk 0:00:33]} 42. Qc4 {[%clk 0:00:51]}  Bg7 {[%clk 0:00:32]} 43. c3 {[%clk 0:00:51]}  Qf5+ {[%clk 0:00:32]} 44. Qd3 {[%clk 0:00:50]}  Qxd3+ {[%clk 0:00:32]} 45. Rxd3 {[%clk 0:00:51]}  Re2 {[%clk 0:00:31]} 46. Rd2 {[%clk 0:00:50]}  Re6 {[%clk 0:00:25]} 47. Kc2 {[%clk 0:00:45]}  f5 {[%clk 0:00:24]} 48. a4 {[%clk 0:00:44]}  Bf6 {[%clk 0:00:20]} 49. Rd5 {[%clk 0:00:42]}  f4 {[%clk 0:00:19]} 50. Kd3 {[%clk 0:00:38]}  Kf7 {[%clk 0:00:20]} 51. Nh2 {[%clk 0:00:37]}  Re3+ {[%clk 0:00:18]} 52. Kc2 {[%clk 0:00:36]}  Rg3 {[%clk 0:00:17]} 53. Rd2 {[%clk 0:00:36]}  Bg7 {[%clk 0:00:14]} 54. Nf1 {[%clk 0:00:35]}  Rg4 {[%clk 0:00:14]} 55. Rf2 {[%clk 0:00:33]}  Ke6 {[%clk 0:00:13]} 56. Kd3 {[%clk 0:00:33]}  Rh4 {[%clk 0:00:13]} 57. g3 {[%clk 0:00:33]}  Rh3 {[%clk 0:00:13]} 58. Ke4 {[%clk 0:00:29]}  fxg3 {[%clk 0:00:13]} 59. Rg2 {[%clk 0:00:30]}  Be5 {[%clk 0:00:13]} 60. Ne3 {[%clk 0:00:30]}  Rh4+ {[%clk 0:00:14]} 61. Kd3 {[%clk 0:00:29]}  Rxa4 {[%clk 0:00:12]} 62. Nc4 {[%clk 0:00:26]}  b5 {[%clk 0:00:13]} 63. Nd2 {[%clk 0:00:24]}  Rh4 {[%clk 0:00:09]} 64. Nf3 {[%clk 0:00:22]}  Rf4 {[%clk 0:00:09]} 65. Ke2 {[%clk 0:00:21]}  g4 {[%clk 0:00:07]} 66. Nd2 {[%clk 0:00:21]}  Rf2+ {[%clk 0:00:06]} 67. Rxf2 {[%clk 0:00:21]}  gxf2 {[%clk 0:00:07]} 68. Kxf2 {[%clk 0:00:21]}  Kf5 {[%clk 0:00:07]} 69. Nb3 {[%clk 0:00:20]}  a4 {[%clk 0:00:08]} 70. Nc5 {[%clk 0:00:20]}  Kg5 {[%clk 0:00:06]} 71. Nd7 {[%clk 0:00:19]}  Bd6 {[%clk 0:00:06]} 72. Kg2 {[%clk 0:00:17]}  Kxh5 {[%clk 0:00:06]} 73. Nb6 {[%clk 0:00:17]}  Kg5 {[%clk 0:00:05]} 74. Nc8 {[%clk 0:00:18]}  Bc5 {[%clk 0:00:05]} 75. Kg3 {[%clk 0:00:17]}  h5 {[%clk 0:00:06]} 0-1


[Site "https://www.chess.com"]

[Event "Titled Tuesday Blitz February 21 Early 2023"]
[White "Sanal, Vahap"]
[Black "Erzhanov, Arman"]
[WhiteFideId "6300545"]
[BlackFideId "4138821"]
[WhiteElo "2600"]
[BlackElo "2228"]
[Result "1-0"]
[Round "01"]
[TimeControl "180+2"]
[Date "2023.02.21"]
[WhiteClock "0:00:11"]
[BlackClock "0:00:16"]

1. e4 {[%clk 0:02:59]}  d6 {[%clk 0:01:35]} 2. d4 {[%clk 0:02:57]}  Nf6 {[%clk 0:01:36]} 3. Nc3 {[%clk 0:02:56]}  e5 {[%clk 0:01:36]} 4. Nf3 {[%clk 0:02:56]}  Nbd7 {[%clk 0:01:37]} 5. Bc4 {[%clk 0:02:56]}  Be7 {[%clk 0:01:38]} 6. O-O {[%clk 0:02:57]}  O-O {[%clk 0:01:38]} 7. Re1 {[%clk 0:02:57]}  a6 {[%clk 0:01:38]} 8. a4 {[%clk 0:02:57]}  b6 {[%clk 0:01:39]} 9. Ba2 {[%clk 0:02:45]}  Bb7 {[%clk 0:01:39]} 10. d5 {[%clk 0:02:34]}  c6 {[%clk 0:01:38]} 11. h3 {[%clk 0:02:24]}  cxd5 {[%clk 0:01:36]} 12. Nxd5 {[%clk 0:02:24]}  Nxd5 {[%clk 0:01:36]} 13. Bxd5 {[%clk 0:02:23]}  Bxd5 {[%clk 0:01:36]} 14. Qxd5 {[%clk 0:02:24]}  Nf6 {[%clk 0:01:36]} 15. Qd3 {[%clk 0:02:23]}  Qc7 {[%clk 0:01:33]} 16. c4 {[%clk 0:02:18]}  h6 {[%clk 0:01:31]} 17. b3 {[%clk 0:02:14]}  Nd7 {[%clk 0:01:31]} 18. Ba3 {[%clk 0:02:11]}  Nc5 {[%clk 0:01:26]} 19. Qc2 {[%clk 0:02:07]}  Rac8 {[%clk 0:01:18]} 20. Nd2 {[%clk 0:02:05]}  Ne6 {[%clk 0:01:17]} 21. Nf1 {[%clk 0:01:59]}  Nd4 {[%clk 0:01:17]} 22. Qd3 {[%clk 0:01:59]}  f5 {[%clk 0:01:17]} 23. exf5 {[%clk 0:01:57]}  Nxf5 {[%clk 0:01:06]} 24. Rad1 {[%clk 0:01:56]}  Rcd8 {[%clk 0:00:59]} 25. Ne3 {[%clk 0:01:40]}  Nxe3 {[%clk 0:00:58]} 26. Rxe3 {[%clk 0:01:41]}  a5 {[%clk 0:00:59]} 27. Qd5+ {[%clk 0:01:40]}  Kh8 {[%clk 0:00:59]} 28. Re4 {[%clk 0:01:35]}  Rf6 {[%clk 0:00:59]} 29. f3 {[%clk 0:01:30]}  Rdf8 {[%clk 0:00:55]} 30. Kh1 {[%clk 0:01:30]}  Rd8 {[%clk 0:00:51]} 31. Rg4 {[%clk 0:01:23]}  Qc8 {[%clk 0:00:51]} 32. Qd3 {[%clk 0:01:16]}  Qc6 {[%clk 0:00:49]} 33. Qe4 {[%clk 0:01:05]}  Qc8 {[%clk 0:00:47]} 34. Rd5 {[%clk 0:01:03]}  Rdf8 {[%clk 0:00:46]} 35. Bc1 {[%clk 0:00:52]}  Qf5 {[%clk 0:00:42]} 36. Qxf5 {[%clk 0:00:51]}  Rxf5 {[%clk 0:00:42]} 37. Ba3 {[%clk 0:00:39]}  R5f6 {[%clk 0:00:41]} 38. Re4 {[%clk 0:00:38]}  Rb8 {[%clk 0:00:40]} 39. Re2 {[%clk 0:00:33]}  Kg8 {[%clk 0:00:40]} 40. Rb5 {[%clk 0:00:32]}  Kf7 {[%clk 0:00:39]} 41. Kg1 {[%clk 0:00:32]}  Ke6 {[%clk 0:00:39]} 42. Bb2 {[%clk 0:00:25]}  Kd7 {[%clk 0:00:40]} 43. c5 {[%clk 0:00:21]}  dxc5 {[%clk 0:00:29]} 44. Bxe5 {[%clk 0:00:21]}  Re6 {[%clk 0:00:29]} 45. Bxb8 {[%clk 0:00:11]}  Rxe2 {[%clk 0:00:29]} 46. Rxb6 {[%clk 0:00:10]}  Rb2 {[%clk 0:00:25]} 47. Rb7+ {[%clk 0:00:09]}  Ke6 {[%clk 0:00:25]} 48. Rb5 {[%clk 0:00:07]}  Bf6 {[%clk 0:00:23]} 49. Bg3 {[%clk 0:00:06]}  Bd4+ {[%clk 0:00:22]} 50. Kh2 {[%clk 0:00:06]}  c4 {[%clk 0:00:22]} 51. bxc4 {[%clk 0:00:06]}  Rc2 {[%clk 0:00:22]} 52. Rxa5 {[%clk 0:00:05]}  Rxc4 {[%clk 0:00:22]} 53. Ra6+ {[%clk 0:00:05]}  Kf5 {[%clk 0:00:21]} 54. Bd6 {[%clk 0:00:05]}  Rc1 {[%clk 0:00:20]} 55. Ra5+ {[%clk 0:00:05]}  Ke6 {[%clk 0:00:20]} 56. Bf4 {[%clk 0:00:05]}  Bg1+ {[%clk 0:00:20]} 57. Kg3 {[%clk 0:00:05]}  Ra1 {[%clk 0:00:18]} 58. Ra6+ {[%clk 0:00:04]}  Kf5 {[%clk 0:00:18]} 59. Bc7 {[%clk 0:00:02]}  g5 {[%clk 0:00:19]} 60. Ra5+ {[%clk 0:00:03]}  Ke6 {[%clk 0:00:19]} 61. h4 {[%clk 0:00:03]}  Be3 {[%clk 0:00:18]} 62. hxg5 {[%clk 0:00:03]}  hxg5 {[%clk 0:00:19]} 63. Kg4 {[%clk 0:00:03]}  Ra2 {[%clk 0:00:19]} 64. Re5+ {[%clk 0:00:04]}  Kd7 {[%clk 0:00:18]} 65. Rxe3 {[%clk 0:00:04]}  Kxc7 {[%clk 0:00:17]} 66. g3 {[%clk 0:00:05]}  Rxa4+ {[%clk 0:00:17]} 67. Kxg5 {[%clk 0:00:05]}  Kd6 {[%clk 0:00:17]} 68. f4 {[%clk 0:00:06]}  Ra8 {[%clk 0:00:17]} 69. g4 {[%clk 0:00:06]}  Rg8+ {[%clk 0:00:18]} 70. Kh4 {[%clk 0:00:06]}  Rh8+ {[%clk 0:00:19]} 71. Kg3 {[%clk 0:00:06]}  Rh1 {[%clk 0:00:19]} 72. g5 {[%clk 0:00:06]}  Rg1+ {[%clk 0:00:20]} 73. Kf3 {[%clk 0:00:07]}  Rf1+ {[%clk 0:00:20]} 74. Kg4 {[%clk 0:00:08]}  Kd5 {[%clk 0:00:20]} 75. Kf5 {[%clk 0:00:08]}  Kd4 {[%clk 0:00:20]} 76. Re5 {[%clk 0:00:08]}  Ra1 {[%clk 0:00:20]} 77. g6 {[%clk 0:00:09]}  Ra8 {[%clk 0:00:20]} 78. Kg5 {[%clk 0:00:09]}  Ra1 {[%clk 0:00:18]} 79. Re7 {[%clk 0:00:10]}  Rg1+ {[%clk 0:00:19]} 80. Kf6 {[%clk 0:00:10]}  Kd5 {[%clk 0:00:19]} 81. f5 {[%clk 0:00:10]}  Kd6 {[%clk 0:00:19]} 82. Re4 {[%clk 0:00:10]}  Kd5 {[%clk 0:00:18]} 83. Re2 {[%clk 0:00:10]}  Kd6 {[%clk 0:00:16]} 84. Kf7 {[%clk 0:00:10]}  Rg5 {[%clk 0:00:16]} 85. f6 {[%clk 0:00:11]} 1-0


[Site "https://www.chess.com"]

[Event "Titled Tuesday Blitz February 21 Early 2023"]
[White "Degenbaev, Aziz"]
[Black "Madaminov, Mukhiddin"]
[WhiteFideId "13802640"]
[BlackFideId "14210703"]
[WhiteElo "2203"]
[BlackElo "2422"]
[Result "0-1"]
[Round "01"]
[TimeControl "180+2"]
[Date "2023.02.21"]
[WhiteClock "0:00:38"]
[BlackClock "0:01:28"]

1. e4 {[%clk 0:02:55]}  e5 {[%clk 0:03:00]} 2. Nf3 {[%clk 0:02:54]}  Nc6 {[%clk 0:02:55]} 3. Bc4 {[%clk 0:02:54]}  Nf6 {[%clk 0:02:54]} 4. d3 {[%clk 0:02:54]}  h6 {[%clk 0:02:54]} 5. O-O {[%clk 0:02:53]}  d6 {[%clk 0:02:54]} 6. h3 {[%clk 0:02:52]}  g5 {[%clk 0:02:54]} 7. Ne1 {[%clk 0:02:12]}  g4 {[%clk 0:02:48]} 8. h4 {[%clk 0:02:12]}  d5 {[%clk 0:02:45]} 9. exd5 {[%clk 0:02:10]}  Nxd5 {[%clk 0:02:46]} 10. g3 {[%clk 0:02:06]}  Be6 {[%clk 0:02:47]} 11. Ng2 {[%clk 0:01:58]}  Qd7 {[%clk 0:02:20]} 12. c3 {[%clk 0:01:32]}  O-O-O {[%clk 0:02:18]} 13. Qe2 {[%clk 0:01:23]}  f5 {[%clk 0:02:15]} 14. b4 {[%clk 0:01:17]}  Bg7 {[%clk 0:02:10]} 15. a4 {[%clk 0:00:55]}  f4 {[%clk 0:02:02]} 16. gxf4 {[%clk 0:00:54]}  exf4 {[%clk 0:01:59]} 17. Bxd5 {[%clk 0:00:44]}  Bxd5 {[%clk 0:02:00]} 18. Nxf4 {[%clk 0:00:43]}  Rhe8 {[%clk 0:01:59]} 19. Be3 {[%clk 0:00:39]}  Ne5 {[%clk 0:01:49]} 20. Nd2 {[%clk 0:00:38]}  Nf3+ {[%clk 0:01:28]} 0-1


[Site "https://www.chess.com"]

[Event "Titled Tuesday Blitz February 21 Early 2023"]
[White "Bachmann, Axel"]
[Black "Aarav Dengla"]
[WhiteFideId "3700488"]
[BlackFideId "45059756"]
[WhiteElo "2604"]
[BlackElo "2343"]
[Result "1-0"]
[Round "01"]
[TimeControl "180+2"]
[Date "2023.02.21"]
[WhiteClock "0:00:57"]
[BlackClock "0:00:02"]

1. Nf3 {[%clk 0:02:51]}  d5 {[%clk 0:02:59]} 2. e3 {[%clk 0:02:51]}  Nf6 {[%clk 0:02:56]} 3. c4 {[%clk 0:02:50]}  e6 {[%clk 0:02:55]} 4. b3 {[%clk 0:02:50]}  b6 {[%clk 0:02:53]} 5. Bb2 {[%clk 0:02:48]}  Bb7 {[%clk 0:02:53]} 6. cxd5 {[%clk 0:02:48]}  exd5 {[%clk 0:02:54]} 7. Nc3 {[%clk 0:02:48]}  c5 {[%clk 0:02:53]} 8. d4 {[%clk 0:02:48]}  Nc6 {[%clk 0:02:51]} 9. Be2 {[%clk 0:02:45]}  Be7 {[%clk 0:02:51]} 10. O-O {[%clk 0:02:45]}  O-O {[%clk 0:02:48]} 11. Rc1 {[%clk 0:02:46]}  Rc8 {[%clk 0:02:30]} 12. dxc5 {[%clk 0:02:39]}  bxc5 {[%clk 0:02:31]} 13. Na4 {[%clk 0:02:40]}  Ne4 {[%clk 0:02:31]} 14. Nd2 {[%clk 0:02:40]}  Qa5 {[%clk 0:02:12]} 15. Nxe4 {[%clk 0:02:37]}  dxe4 {[%clk 0:02:05]} 16. Qd7 {[%clk 0:02:32]}  Rc7 {[%clk 0:01:48]} 17. Qg4 {[%clk 0:02:30]}  f6 {[%clk 0:01:42]} 18. Bc3 {[%clk 0:02:20]}  Nb4 {[%clk 0:01:38]} 19. a3 {[%clk 0:02:21]}  Bd5 {[%clk 0:01:24]} 20. axb4 {[%clk 0:01:44]}  cxb4 {[%clk 0:01:25]} 21. Bd4 {[%clk 0:01:44]}  Bxb3 {[%clk 0:01:04]} 22. Rxc7 {[%clk 0:01:37]}  Qxc7 {[%clk 0:01:05]} 23. Nc5 {[%clk 0:01:31]}  Bxc5 {[%clk 0:00:24]} 24. Rc1 {[%clk 0:01:30]}  a5 {[%clk 0:00:24]} 25. Rxc5 {[%clk 0:01:30]}  Qd8 {[%clk 0:00:22]} 26. Qxe4 {[%clk 0:01:18]}  a4 {[%clk 0:00:22]} 27. Bd3 {[%clk 0:01:19]}  g6 {[%clk 0:00:17]} 28. Qb7 {[%clk 0:01:14]}  Qb8 {[%clk 0:00:13]} 29. Qe7 {[%clk 0:01:07]}  Rf7 {[%clk 0:00:12]} 30. Qe4 {[%clk 0:01:00]}  a3 {[%clk 0:00:12]} 31. Ra5 {[%clk 0:01:01]}  Rc7 {[%clk 0:00:11]} 32. Ra8 {[%clk 0:00:58]}  Rc1+ {[%clk 0:00:11]} 33. Bf1 {[%clk 0:00:59]}  Qxa8 {[%clk 0:00:08]} 34. Qxa8+ {[%clk 0:00:59]}  Kg7 {[%clk 0:00:08]} 35. Qb7+ {[%clk 0:00:58]}  Kh6 {[%clk 0:00:08]} 36. Qxb4 {[%clk 0:00:57]}  Bc4 {[%clk 0:00:05]} 37. Qxc4 {[%clk 0:00:57]}  Rxc4 {[%clk 0:00:01]} 38. Bxc4 {[%clk 0:00:58]}  a2 {[%clk 0:00:02]} 39. Bxf6 {[%clk 0:00:57]} 1-0


[Site "https://www.chess.com"]

[Event "Titled Tuesday Blitz February 21 Early 2023"]
[White "Narayanan, Srinath"]
[Black "Sanchez, Robert"]
[WhiteFideId "5018420"]
[BlackFideId "2034360"]
[WhiteElo "2559"]
[BlackElo "1966"]
[Result "1-0"]
[Round "01"]
[TimeControl "180+2"]
[Date "2023.02.21"]
[WhiteClock "0:00:39"]
[BlackClock "0:00:55"]

1. Nf3 {[%clk 0:02:59]}  d5 {[%clk 0:02:52]} 2. e3 {[%clk 0:02:58]}  Nc6 {[%clk 0:02:49]} 3. d4 {[%clk 0:02:58]}  Bf5 {[%clk 0:02:48]} 4. Bd3 {[%clk 0:02:56]}  Bg4 {[%clk 0:02:43]} 5. Nbd2 {[%clk 0:02:56]}  e6 {[%clk 0:02:43]} 6. O-O {[%clk 0:02:55]}  Bd6 {[%clk 0:02:41]} 7. a3 {[%clk 0:02:55]}  a6 {[%clk 0:02:39]} 8. c4 {[%clk 0:02:55]}  Nf6 {[%clk 0:02:38]} 9. b4 {[%clk 0:02:54]}  dxc4 {[%clk 0:02:33]} 10. Nxc4 {[%clk 0:02:53]}  Qe7 {[%clk 0:02:28]} 11. h3 {[%clk 0:02:50]}  Bh5 {[%clk 0:02:28]} 12. Bb2 {[%clk 0:02:48]}  Rd8 {[%clk 0:02:26]} 13. Qe2 {[%clk 0:02:46]}  O-O {[%clk 0:02:26]} 14. Rac1 {[%clk 0:02:43]}  Bxf3 {[%clk 0:02:20]} 15. Qxf3 {[%clk 0:02:42]}  e5 {[%clk 0:02:21]} 16. dxe5 {[%clk 0:01:54]}  Nxe5 {[%clk 0:02:15]} 17. Bxe5 {[%clk 0:01:49]}  Bxe5 {[%clk 0:02:15]} 18. Rfd1 {[%clk 0:01:50]}  c6 {[%clk 0:01:59]} 19. Na5 {[%clk 0:01:50]}  Bb8 {[%clk 0:01:55]} 20. g3 {[%clk 0:01:49]}  Qe6 {[%clk 0:01:49]} 21. Nxb7 {[%clk 0:01:44]}  Rd5 {[%clk 0:01:40]} 22. Bf1 {[%clk 0:01:30]}  Rxd1 {[%clk 0:01:33]} 23. Rxd1 {[%clk 0:01:28]}  Nd5 {[%clk 0:01:26]} 24. Nc5 {[%clk 0:01:24]}  Qg6 {[%clk 0:01:23]} 25. Nxa6 {[%clk 0:01:08]}  Be5 {[%clk 0:01:20]} 26. Nc5 {[%clk 0:01:07]}  Ra8 {[%clk 0:01:14]} 27. b5 {[%clk 0:01:03]}  Nc3 {[%clk 0:01:12]} 28. Rd7 {[%clk 0:00:55]}  h5 {[%clk 0:01:08]} 29. bxc6 {[%clk 0:00:48]}  Rxa3 {[%clk 0:01:02]} 30. Rd8+ {[%clk 0:00:41]}  Kh7 {[%clk 0:01:02]} 31. Bd3 {[%clk 0:00:39]}  Ra1+ {[%clk 0:00:55]} 32. Kg2 {[%clk 0:00:39]} 1-0


[Site "https://www.chess.com"]

[Event "Titled Tuesday Blitz February 21 Early 2023"]
[White "Kamsky, Gata"]
[Black "Chakravarthi Reddy, M"]
[WhiteFideId "2000024"]
[BlackFideId "25009532"]
[WhiteElo "2665"]
[BlackElo "2279"]
[Result "1/2-1/2"]
[Round "01"]
[TimeControl "180+2"]
[Date "2023.02.21"]
[WhiteClock "0:00:03"]
[BlackClock "0:00:12"]

1. e4 {[%clk 0:02:59]}  e5 {[%clk 0:02:59]} 2. Nf3 {[%clk 0:02:58]}  Nc6 {[%clk 0:03:00]} 3. Bb5 {[%clk 0:02:57]}  a6 {[%clk 0:02:59]} 4. Ba4 {[%clk 0:02:56]}  Nf6 {[%clk 0:03:00]} 5. O-O {[%clk 0:02:51]}  b5 {[%clk 0:03:00]} 6. Bb3 {[%clk 0:02:50]}  Be7 {[%clk 0:03:01]} 7. Re1 {[%clk 0:02:46]}  O-O {[%clk 0:03:00]} 8. c3 {[%clk 0:02:47]}  d5 {[%clk 0:03:00]} 9. d3 {[%clk 0:02:46]}  dxe4 {[%clk 0:02:51]} 10. dxe4 {[%clk 0:02:46]}  Bg4 {[%clk 0:02:48]} 11. Qxd8 {[%clk 0:02:39]}  Raxd8 {[%clk 0:02:47]} 12. Nbd2 {[%clk 0:02:38]}  b4 {[%clk 0:02:39]} 13. Ba4 {[%clk 0:02:32]}  bxc3 {[%clk 0:02:30]} 14. bxc3 {[%clk 0:02:31]}  Bd7 {[%clk 0:02:08]} 15. Bxc6 {[%clk 0:02:28]}  Bxc6 {[%clk 0:02:08]} 16. Nxe5 {[%clk 0:02:27]}  Bxe4 {[%clk 0:02:02]} 17. Nxe4 {[%clk 0:02:21]}  Nxe4 {[%clk 0:02:01]} 18. Nc6 {[%clk 0:02:17]}  Bc5 {[%clk 0:01:54]} 19. Be3 {[%clk 0:01:42]}  Rd6 {[%clk 0:01:20]} 20. Bxc5 {[%clk 0:01:29]}  Nxc5 {[%clk 0:01:18]} 21. Ne7+ {[%clk 0:01:19]}  Kh8 {[%clk 0:01:17]} 22. Rad1 {[%clk 0:01:12]}  Rxd1 {[%clk 0:00:50]} 23. Rxd1 {[%clk 0:01:11]}  Re8 {[%clk 0:00:48]} 24. Nd5 {[%clk 0:01:03]}  Rd8 {[%clk 0:00:39]} 25. Rb1 {[%clk 0:00:37]}  g6 {[%clk 0:00:29]} 26. Ne3 {[%clk 0:00:18]}  Rd2 {[%clk 0:00:26]} 27. h4 {[%clk 0:00:14]}  Rxa2 {[%clk 0:00:26]} 28. Rb8+ {[%clk 0:00:13]}  Kg7 {[%clk 0:00:26]} 29. Rc8 {[%clk 0:00:13]}  Ne6 {[%clk 0:00:26]} 30. Nd5 {[%clk 0:00:13]}  c5 {[%clk 0:00:26]} 31. g3 {[%clk 0:00:12]}  Rd2 {[%clk 0:00:25]} 32. Ne3 {[%clk 0:00:11]}  Rd3 {[%clk 0:00:25]} 33. c4 {[%clk 0:00:11]}  a5 {[%clk 0:00:24]} 34. Ra8 {[%clk 0:00:11]}  Ra3 {[%clk 0:00:24]} 35. Kg2 {[%clk 0:00:11]}  a4 {[%clk 0:00:23]} 36. Ng4 {[%clk 0:00:10]}  Ra1 {[%clk 0:00:21]} 37. Ra7 {[%clk 0:00:10]}  a3 {[%clk 0:00:17]} 38. Ne5 {[%clk 0:00:09]}  a2 {[%clk 0:00:17]} 39. Nxf7 {[%clk 0:00:07]}  Kf6 {[%clk 0:00:16]} 40. Nd6 {[%clk 0:00:07]}  Nd4 {[%clk 0:00:16]} 41. Ne4+ {[%clk 0:00:07]}  Ke5 {[%clk 0:00:16]} 42. Nc3 {[%clk 0:00:07]}  Rc1 {[%clk 0:00:13]} 43. Nxa2 {[%clk 0:00:07]}  Rxc4 {[%clk 0:00:13]} 44. Rxh7 {[%clk 0:00:06]}  Rc2 {[%clk 0:00:13]} 45. Ra7 {[%clk 0:00:05]}  c4 {[%clk 0:00:13]} 46. Nb4 {[%clk 0:00:03]}  Rb2 {[%clk 0:00:13]} 47. Ra5+ {[%clk 0:00:04]}  Ke6 {[%clk 0:00:11]} 48. Ra6+ {[%clk 0:00:02]}  Ke5 {[%clk 0:00:11]} 49. Ra5+ {[%clk 0:00:03]}  Ke6 {[%clk 0:00:11]} 50. Ra6+ {[%clk 0:00:03]}  Ke5 {[%clk 0:00:12]} 51. Ra5+ {[%clk 0:00:03]} 1/2-1/2


[Site "https://www.chess.com"]

[Event "Titled Tuesday Blitz February 21 Early 2023"]
[White "Livaic, Leon"]
[Black "Mazurkiewicz, Michal"]
[WhiteFideId "14531534"]
[BlackFideId "1124943"]
[WhiteElo "2579"]
[BlackElo "2145"]
[Result "1-0"]
[Round "01"]
[TimeControl "180+2"]
[Date "2023.02.21"]
[WhiteClock "0:01:19"]
[BlackClock "0:00:11"]

1. Nf3 {[%clk 0:03:00]}  Nf6 {[%clk 0:02:58]} 2. g3 {[%clk 0:03:01]}  g6 {[%clk 0:02:58]} 3. Bg2 {[%clk 0:03:02]}  Bg7 {[%clk 0:02:58]} 4. O-O {[%clk 0:03:02]}  O-O {[%clk 0:02:58]} 5. d4 {[%clk 0:03:03]}  d6 {[%clk 0:02:59]} 6. Nc3 {[%clk 0:02:59]}  c5 {[%clk 0:02:57]} 7. dxc5 {[%clk 0:02:54]}  dxc5 {[%clk 0:02:56]} 8. e4 {[%clk 0:02:54]}  Nc6 {[%clk 0:02:55]} 9. h3 {[%clk 0:02:53]}  Nd4 {[%clk 0:02:53]} 10. Be3 {[%clk 0:02:53]}  Nxf3+ {[%clk 0:02:12]} 11. Qxf3 {[%clk 0:02:54]}  Nd7 {[%clk 0:02:12]} 12. Rad1 {[%clk 0:02:50]}  Ne5 {[%clk 0:02:10]} 13. Qe2 {[%clk 0:02:49]}  Qa5 {[%clk 0:01:54]} 14. f4 {[%clk 0:02:44]}  Nc6 {[%clk 0:01:54]} 15. e5 {[%clk 0:02:45]}  f6 {[%clk 0:01:32]} 16. Qc4+ {[%clk 0:02:12]}  Kh8 {[%clk 0:01:32]} 17. exf6 {[%clk 0:02:11]}  Bxf6 {[%clk 0:01:30]} 18. Qxc5 {[%clk 0:02:11]}  Qxc5 {[%clk 0:01:21]} 19. Bxc5 {[%clk 0:02:10]}  Bf5 {[%clk 0:01:21]} 20. Rd2 {[%clk 0:01:50]}  Rac8 {[%clk 0:01:20]} 21. g4 {[%clk 0:01:46]}  Be6 {[%clk 0:00:54]} 22. Re1 {[%clk 0:01:46]}  Bg8 {[%clk 0:00:21]} 23. Bxc6 {[%clk 0:01:39]}  Rxc6 {[%clk 0:00:21]} 24. Bd4 {[%clk 0:01:26]}  Kg7 {[%clk 0:00:16]} 25. Rxe7+ {[%clk 0:01:26]}  Rf7 {[%clk 0:00:16]} 26. Bxf6+ {[%clk 0:01:26]}  Kxf6 {[%clk 0:00:16]} 27. Rxf7+ {[%clk 0:01:26]}  Bxf7 {[%clk 0:00:17]} 28. Rd7 {[%clk 0:01:26]}  Rb6 {[%clk 0:00:12]} 29. b3 {[%clk 0:01:22]}  Rc6 {[%clk 0:00:11]} 30. Ne4+ {[%clk 0:01:19]} 1-0


[Site "https://www.chess.com"]